[Event "*** Titled Tuesday Blitz"]
[Site "Chess.com"]
[Date "2019.06.04"]
[Round "7"]
[White "SergeiAza"]
[Black "Durarbayli"]
[Result "0-1"]
[WhiteElo "2763"]
[BlackElo "2762"]
[TimeControl "180+2"]
[EndTime "14:35:23 PDT"]
[Termination "Durarbayli won by resignation"]

1. e4 {[%clk 0:03:01.9]} 1... c5 {[%clk 0:03:00.3]} 2. Nf3 {[%clk 0:03:02.8]}
2... e6 {[%clk 0:03:01]} 3. d4 {[%clk 0:03:04.1]} 3... cxd4 {[%clk 0:03:02.9]}
4. Nxd4 {[%clk 0:03:05.6]} 4... Qb6 {[%clk 0:03:04.5]} 5. Nb3 {[%clk 0:03:04.3]}
5... Nc6 {[%clk 0:03:00.3]} 6. Be2 {[%clk 0:03:02.3]} 6... Bb4+ {[%clk
0:02:59.7]} 7. Nc3 {[%clk 0:02:59.7]} 7... Nf6 {[%clk 0:02:58.8]} 8. Be3 {[%clk
0:02:55.8]} 8... Qc7 {[%clk 0:02:57.9]} 9. Bd3 {[%clk 0:02:54.1]} 9... d5 {[%clk
0:02:58.2]} 10. exd5 {[%clk 0:02:45.4]} 10... Nxd5 {[%clk 0:02:56.4]} 11. Bd2
{[%clk 0:02:46.2]} 11... Nxc3 {[%clk 0:02:45.9]} 12. bxc3 {[%clk 0:02:46.5]}
12... Qe5+ {[%clk 0:02:46]} 13. Kf1 {[%clk 0:02:14.4]} 13... Bxc3 {[%clk
0:02:46]} 14. Bxc3 {[%clk 0:02:15]} 14... Qxc3 {[%clk 0:02:47.9]} 15. h4 {[%clk
0:02:15]} 15... e5 {[%clk 0:02:45.5]} 16. Rb1 {[%clk 0:01:40.7]} 16... O-O
{[%clk 0:02:28.7]} 17. Qf3 {[%clk 0:01:29.8]} 17... Kh8 {[%clk 0:02:22.8]} 18.
h5 {[%clk 0:01:20.1]} 18... h6 {[%clk 0:02:12.5]} 19. Rh4 {[%clk 0:01:15.4]}
19... Be6 {[%clk 0:02:10.7]} 20. Kg1 {[%clk 0:01:12.6]} 20... f5 {[%clk
0:02:00]} 21. Qe3 {[%clk 0:00:38.9]} 21... b6 {[%clk 0:01:46]} 22. Bf1 {[%clk
0:00:33.6]} 22... Qxe3 {[%clk 0:01:42.8]} 23. fxe3 {[%clk 0:00:34.5]} 23... Rac8
{[%clk 0:01:43.6]} 24. a4 {[%clk 0:00:31.9]} 24... e4 {[%clk 0:01:40.8]} 25. Rf4
{[%clk 0:00:21]} 25... Rc7 {[%clk 0:01:31.9]} 26. Bb5 {[%clk 0:00:20.8]} 26...
Bxb3 {[%clk 0:01:25.9]} 27. cxb3 {[%clk 0:00:21.5]} 27... Nb4 {[%clk 0:01:20]}
28. Rbf1 {[%clk 0:00:20.1]} 28... Rcf7 {[%clk 0:01:18.6]} 29. Bc4 {[%clk
0:00:20.4]} 29... Rf6 {[%clk 0:01:19.3]} 30. Rd1 {[%clk 0:00:21.9]} 30... Nc6
{[%clk 0:01:02.2]} 31. Rd7 {[%clk 0:00:20.8]} 31... a5 {[%clk 0:00:54.6]} 32.
Rd5 {[%clk 0:00:17.3]} 32... Ne7 {[%clk 0:00:50.1]} 33. Re5 {[%clk 0:00:16.1]}
33... Nc6 {[%clk 0:00:34.6]} 34. Rb5 {[%clk 0:00:17.1]} 34... Ne7 {[%clk
0:00:35.5]} 35. Kh2 {[%clk 0:00:17.4]} 35... g5 {[%clk 0:00:33.7]} 36. hxg6
{[%clk 0:00:15.6]} 36... Nxg6 {[%clk 0:00:35.2]} 37. Rf2 {[%clk 0:00:17.1]}
37... Kg7 {[%clk 0:00:34.8]} 38. Rd5 {[%clk 0:00:16.5]} 38... h5 {[%clk
0:00:34.7]} 39. Rfd2 {[%clk 0:00:16]} 39... Kh6 {[%clk 0:00:34.6]} 40. Rd7
{[%clk 0:00:16.1]} 40... Ne5 {[%clk 0:00:34.9]} 41. R2d6 {[%clk 0:00:15.9]}
41... Nxd7 {[%clk 0:00:31]} 42. Rxd7 {[%clk 0:00:12.5]} 42... f4 {[%clk
0:00:32.1]} 0-1

[Event "*** Titled Tuesday Blitz"]
[Site "Chess.com"]
[Date "2019.06.04"]
[Round "7"]
[White "Firegrizzly"]
[Black "SalgadoChess91"]
[Result "1/2-1/2"]
[WhiteElo "2691"]
[BlackElo "2868"]
[TimeControl "180+2"]
[EndTime "14:35:26 PDT"]
[Termination "Game drawn by repetition"]

1. d4 {[%clk 0:03:01.9]} 1... Nf6 {[%clk 0:03:00.9]} 2. Nf3 {[%clk 0:03:02.4]}
2... d5 {[%clk 0:03:01.6]} 3. Bf4 {[%clk 0:03:03.1]} 3... c5 {[%clk 0:03:02.4]}
4. e3 {[%clk 0:03:03.8]} 4... Nc6 {[%clk 0:03:02.4]} 5. c3 {[%clk 0:03:04.4]}
5... Qb6 {[%clk 0:03:00.9]} 6. Qc1 {[%clk 0:03:04.1]} 6... Nh5 {[%clk
0:02:54.2]} 7. Bg5 {[%clk 0:02:56.8]} 7... h6 {[%clk 0:02:54.5]} 8. Bh4 {[%clk
0:02:55]} 8... g5 {[%clk 0:02:55.4]} 9. Bg3 {[%clk 0:02:56.2]} 9... Nxg3 {[%clk
0:02:56.1]} 10. hxg3 {[%clk 0:02:56.9]} 10... Bg7 {[%clk 0:02:57]} 11. Nbd2
{[%clk 0:02:57]} 11... Bf5 {[%clk 0:02:49.9]} 12. dxc5 {[%clk 0:02:56.2]} 12...
Qxc5 {[%clk 0:02:49.4]} 13. Nb3 {[%clk 0:02:56.3]} 13... Qb6 {[%clk 0:02:47.4]}
14. Nfd4 {[%clk 0:02:57.1]} 14... Bg6 {[%clk 0:02:46.6]} 15. g4 {[%clk
0:02:54.3]} 15... e6 {[%clk 0:02:44.8]} 16. Be2 {[%clk 0:02:54.1]} 16... O-O-O
{[%clk 0:02:34.2]} 17. a4 {[%clk 0:02:49.3]} 17... a6 {[%clk 0:02:26.2]} 18. a5
{[%clk 0:02:49.6]} 18... Qc7 {[%clk 0:02:26.9]} 19. g3 {[%clk 0:02:32.2]} 19...
Kb8 {[%clk 0:02:20.8]} 20. Nc5 {[%clk 0:02:17.8]} 20... Nxd4 {[%clk 0:01:54.6]}
21. cxd4 {[%clk 0:02:15.2]} 21... e5 {[%clk 0:01:13.7]} 22. Bxa6 {[%clk
0:02:13.7]} 22... exd4 {[%clk 0:01:13.2]} 23. Bxb7 {[%clk 0:02:13.7]} 23... Ka7
{[%clk 0:01:14.2]} 24. O-O {[%clk 0:01:56.2]} 24... dxe3 {[%clk 0:01:13.4]} 25.
Qxe3 {[%clk 0:01:55.5]} 25... d4 {[%clk 0:01:14.1]} 26. Qa3 {[%clk 0:01:52.6]}
26... Bf8 {[%clk 0:01:14.3]} 27. Rac1 {[%clk 0:01:46.2]} 27... Bxc5 {[%clk
0:01:12.2]} 28. Rxc5 {[%clk 0:01:32.9]} 28... Qxb7 {[%clk 0:01:11.9]} 29. Rfc1
{[%clk 0:01:32.1]} 29... Rd7 {[%clk 0:01:06.8]} 30. b4 {[%clk 0:01:23.1]} 30...
d3 {[%clk 0:00:56.6]} 31. Qc3 {[%clk 0:01:07.4]} 31... Qf3 {[%clk 0:00:45.1]}
32. Rc7+ {[%clk 0:01:06.3]} 32... Rxc7 {[%clk 0:00:36.7]} 33. Qxc7+ {[%clk
0:01:06.9]} 33... Qb7 {[%clk 0:00:35.9]} 34. Qe5 {[%clk 0:00:51.9]} 34... Rc8
{[%clk 0:00:30.9]} 35. Rd1 {[%clk 0:00:42.5]} 35... Ka6 {[%clk 0:00:30.3]} 36.
Qd6+ {[%clk 0:00:42.5]} 36... Rc6 {[%clk 0:00:30.8]} 37. Qd4 {[%clk 0:00:42.9]}
37... Qb5 {[%clk 0:00:28.6]} 38. Qd8 {[%clk 0:00:43.7]} 38... Qb7 {[%clk
0:00:25.8]} 39. b5+ {[%clk 0:00:42.2]} 39... Kxb5 {[%clk 0:00:24.3]} 40. Rb1+
{[%clk 0:00:42.4]} 40... Ka6 {[%clk 0:00:25.5]} 41. Rxb7 {[%clk 0:00:42.7]}
41... Kxb7 {[%clk 0:00:25.3]} 42. f4 {[%clk 0:00:42.9]} 42... Rc1+ {[%clk
0:00:12.9]} 43. Kf2 {[%clk 0:00:42.6]} 43... d2 {[%clk 0:00:14.2]} 44. Qd7+
{[%clk 0:00:31.7]} 44... Kb8 {[%clk 0:00:15.3]} 45. Qd8+ {[%clk 0:00:32.2]}
45... Kb7 {[%clk 0:00:16.6]} 46. Qd7+ {[%clk 0:00:33.2]} 46... Kb8 {[%clk
0:00:17.8]} 47. Qd8+ {[%clk 0:00:34.1]} 47... Kb7 {[%clk 0:00:19.2]} 1/2-1/2

[Event "*** Titled Tuesday Blitz"]
[Site "Chess.com"]
[Date "2019.06.04"]
[Round "7"]
[White "NMJeevanK"]
[Black "Gentlejimmy7"]
[Result "0-1"]
[WhiteElo "2439"]
[BlackElo "2552"]
[TimeControl "180+2"]
[EndTime "14:35:27 PDT"]
[Termination "Gentlejimmy7 won by checkmate"]

1. e4 {[%clk 0:03:01.9]} 1... c5 {[%clk 0:03:00.1]} 2. Nf3 {[%clk 0:03:02.7]}
2... e6 {[%clk 0:03:00.8]} 3. d4 {[%clk 0:03:04]} 3... cxd4 {[%clk 0:03:02.6]}
4. Nxd4 {[%clk 0:03:05.5]} 4... Nf6 {[%clk 0:03:03.7]} 5. Bd3 {[%clk 0:03:06.5]}
5... Nc6 {[%clk 0:03:02.1]} 6. c3 {[%clk 0:03:07.1]} 6... d5 {[%clk 0:03:00]} 7.
exd5 {[%clk 0:03:07.5]} 7... exd5 {[%clk 0:03:00.3]} 8. O-O {[%clk 0:03:08.5]}
8... Be7 {[%clk 0:03:01.7]} 9. h3 {[%clk 0:03:05.1]} 9... O-O {[%clk 0:03:03]}
10. Bf4 {[%clk 0:03:01.4]} 10... Nxd4 {[%clk 0:03:02.7]} 11. cxd4 {[%clk
0:03:02.3]} 11... Bd6 {[%clk 0:03:03.5]} 12. Be5 {[%clk 0:03:00.5]} 12... Bxe5
{[%clk 0:03:01.9]} 13. dxe5 {[%clk 0:03:02.4]} 13... Ne4 {[%clk 0:03:03.5]} 14.
Nd2 {[%clk 0:02:44.6]} 14... Bf5 {[%clk 0:02:52.4]} 15. Re1 {[%clk 0:02:38]}
15... Qb6 {[%clk 0:02:44.2]} 16. Nxe4 {[%clk 0:02:29.2]} 16... dxe4 {[%clk
0:02:45.1]} 17. Bxe4 {[%clk 0:02:30.8]} 17... Bxe4 {[%clk 0:02:45.9]} 18. Rxe4
{[%clk 0:02:32.7]} 18... Qxb2 {[%clk 0:02:47.1]} 19. Re2 {[%clk 0:02:05.2]}
19... Qa3 {[%clk 0:02:41.3]} 20. Rb1 {[%clk 0:02:05.6]} 20... b6 {[%clk
0:02:40.4]} 21. Rb3 {[%clk 0:02:05.3]} 21... Qc5 {[%clk 0:02:37.6]} 22. Rg3
{[%clk 0:01:59.9]} 22... Rad8 {[%clk 0:02:36.1]} 23. Qa4 {[%clk 0:01:52.4]}
23... Rd4 {[%clk 0:02:00.2]} 24. Qxa7 {[%clk 0:01:43]} 24... Qc1+ {[%clk
0:01:57]} 25. Kh2 {[%clk 0:01:43.5]} 25... Rd1 {[%clk 0:01:57.8]} 26. Rge3
{[%clk 0:01:38.8]} 26... Rh1+ {[%clk 0:01:55]} 27. Kg3 {[%clk 0:01:40]} 27...
Qc6 {[%clk 0:01:56]} 28. Re4 {[%clk 0:01:14.2]} 28... h5 {[%clk 0:01:45.2]} 29.
Qa3 {[%clk 0:00:43.6]} 29... Qg6+ {[%clk 0:01:43]} 30. Kf3 {[%clk 0:00:44.9]}
30... Rg1 {[%clk 0:01:37.9]} 31. g3 {[%clk 0:00:28.9]} 31... Qf5+ {[%clk
0:01:15.9]} 32. Rf4 {[%clk 0:00:30]} 32... Qxh3 {[%clk 0:01:16.3]} 33. e6 {[%clk
0:00:31]} 33... Qh1+ {[%clk 0:01:13.7]} 34. Ke3 {[%clk 0:00:29.5]} 34... Re8
{[%clk 0:01:11.6]} 35. e7 {[%clk 0:00:21.6]} 35... Qd5 {[%clk 0:00:52.9]} 36.
Re4 {[%clk 0:00:17.9]} 36... f5 {[%clk 0:00:43]} 37. Rf4 {[%clk 0:00:04.6]}
37... g5 {[%clk 0:00:33.1]} 38. Ra4 {[%clk 0:00:03.8]} 38... Rd1 {[%clk
0:00:26.1]} 39. Ra8 {[%clk 0:00:03.1]} 39... Qe4# {[%clk 0:00:13]} 0-1

[Event "*** Titled Tuesday Blitz"]
[Site "Chess.com"]
[Date "2019.06.04"]
[Round "7"]
[White "SimonKnightRivendell"]
[Black "Anaiy"]
[Result "0-1"]
[WhiteElo "2004"]
[BlackElo "1984"]
[TimeControl "180+2"]
[EndTime "14:35:34 PDT"]
[Termination "Anaiy won on time"]

1. d4 {[%clk 0:02:19.3]} 1... d5 {[%clk 0:03:00.1]} 2. c4 {[%clk 0:02:20.3]}
2... e6 {[%clk 0:03:00.7]} 3. Nf3 {[%clk 0:02:20]} 3... Nf6 {[%clk 0:03:00.2]}
4. g3 {[%clk 0:02:19]} 4... Be7 {[%clk 0:03:01]} 5. Bg2 {[%clk 0:02:20]} 5...
O-O {[%clk 0:03:02.1]} 6. O-O {[%clk 0:02:20.8]} 6... dxc4 {[%clk 0:03:03]} 7.
Qc2 {[%clk 0:02:21.4]} 7... a6 {[%clk 0:03:04.1]} 8. Qxc4 {[%clk 0:02:21.6]}
8... b5 {[%clk 0:03:05.6]} 9. Qc2 {[%clk 0:02:22.5]} 9... Bb7 {[%clk 0:03:07.1]}
10. Nbd2 {[%clk 0:02:21.4]} 10... Nbd7 {[%clk 0:03:06.5]} 11. Rd1 {[%clk
0:02:18.1]} 11... Qc8 {[%clk 0:03:00.1]} 12. Nb3 {[%clk 0:02:06]} 12... c5
{[%clk 0:02:57.4]} 13. Na5 {[%clk 0:01:49.9]} 13... Be4 {[%clk 0:02:47]} 14. Qd2
{[%clk 0:01:50.5]} 14... cxd4 {[%clk 0:02:45.6]} 15. Qxd4 {[%clk 0:01:48]} 15...
Bc5 {[%clk 0:02:38.1]} 16. Qc3 {[%clk 0:01:41.3]} 16... Nd5 {[%clk 0:02:13.4]}
17. Qe1 {[%clk 0:01:37.8]} 17... Bc2 {[%clk 0:01:56.6]} 18. Rd2 {[%clk
0:01:30.1]} 18... Bb4 {[%clk 0:01:56.9]} 19. Rxc2 {[%clk 0:01:29.5]} 19... Qxc2
{[%clk 0:01:30.3]} 20. Bd2 {[%clk 0:01:30.6]} 20... Bxd2 {[%clk 0:01:20]} 21.
Nxd2 {[%clk 0:01:31.5]} 21... Rac8 {[%clk 0:01:16.3]} 22. e4 {[%clk 0:01:22.5]}
22... Nb4 {[%clk 0:01:10.5]} 23. Ndb3 {[%clk 0:01:14.8]} 23... Nd3 {[%clk
0:00:54.7]} 24. Qe3 {[%clk 0:01:15.6]} 24... Nxb2 {[%clk 0:00:51]} 25. e5 {[%clk
0:01:08.3]} 25... Nc4 {[%clk 0:00:31.3]} 26. Nxc4 {[%clk 0:00:58.9]} 26... bxc4
{[%clk 0:00:33.2]} 27. Nd4 {[%clk 0:00:56.6]} 27... Qb2 {[%clk 0:00:32.8]} 28.
Rd1 {[%clk 0:00:54.3]} 28... Nc5 {[%clk 0:00:31.8]} 29. Nc6 {[%clk 0:00:50.2]}
29... Nd3 {[%clk 0:00:14.6]} 30. Ne7+ {[%clk 0:00:48.9]} 30... Kh8 {[%clk
0:00:15.7]} 31. Nxc8 {[%clk 0:00:49.6]} 31... Rxc8 {[%clk 0:00:17.6]} 32. Be4
{[%clk 0:00:40.2]} 32... Qc2 {[%clk 0:00:13.2]} 33. Rd2 {[%clk 0:00:22.5]} 33...
Qb1+ {[%clk 0:00:13.6]} 34. Kg2 {[%clk 0:00:22.7]} 34... Ne1+ {[%clk 0:00:10.3]}
35. Kh3 {[%clk 0:00:23.4]} 35... Qa1 {[%clk 0:00:08.4]} 36. Qc5 {[%clk
0:00:19.5]} 36... Rg8 {[%clk 0:00:07.1]} 37. Rd7 {[%clk 0:00:15.5]} 37... Qc1
{[%clk 0:00:04.1]} 38. f4 {[%clk 0:00:09.1]} 38... Qb2 {[%clk 0:00:03]} 39. Rxf7
{[%clk 0:00:07.1]} 39... Qe2 {[%clk 0:00:04.5]} 0-1

[Event "*** Titled Tuesday Blitz"]
[Site "Chess.com"]
[Date "2019.06.04"]
[Round "7"]
[White "el-reptiliano"]
[Black "ozates"]
[Result "1/2-1/2"]
[WhiteElo "2195"]
[BlackElo "2239"]
[TimeControl "180+2"]
[EndTime "14:35:43 PDT"]
[Termination "Game drawn by repetition"]

1. Nf3 {[%clk 0:03:01.9]} 1... c5 {[%clk 0:02:56.5]} 2. e3 {[%clk 0:03:00.9]}
2... g6 {[%clk 0:02:55.9]} 3. c4 {[%clk 0:03:00.7]} 3... Bg7 {[%clk 0:02:57.1]}
4. Nc3 {[%clk 0:03:01.8]} 4... Nf6 {[%clk 0:02:57.4]} 5. d4 {[%clk 0:03:02.9]}
5... cxd4 {[%clk 0:02:58.3]} 6. exd4 {[%clk 0:03:04.8]} 6... d5 {[%clk
0:02:58.5]} 7. cxd5 {[%clk 0:03:05.8]} 7... Nxd5 {[%clk 0:03:00.4]} 8. Bc4
{[%clk 0:03:07]} 8... Nxc3 {[%clk 0:02:55]} 9. bxc3 {[%clk 0:03:07.7]} 9... O-O
{[%clk 0:02:54.8]} 10. O-O {[%clk 0:03:07.9]} 10... Qc7 {[%clk 0:02:52.3]} 11.
Be2 {[%clk 0:02:11.5]} 11... Qxc3 {[%clk 0:02:49.8]} 12. Bg5 {[%clk 0:02:12.7]}
12... Qc7 {[%clk 0:02:38.8]} 13. Rc1 {[%clk 0:02:11.7]} 13... Qd6 {[%clk
0:02:31.4]} 14. Re1 {[%clk 0:01:52.5]} 14... e6 {[%clk 0:02:22.7]} 15. Bc4
{[%clk 0:01:29.8]} 15... Nc6 {[%clk 0:02:20.2]} 16. d5 {[%clk 0:01:19.2]} 16...
exd5 {[%clk 0:02:09.1]} 17. Bxd5 {[%clk 0:01:18.7]} 17... Qa3 {[%clk 0:01:26.9]}
18. Bxc6 {[%clk 0:00:54.8]} 18... bxc6 {[%clk 0:01:28.8]} 19. Be7 {[%clk
0:00:55.7]} 19... Qxa2 {[%clk 0:01:29.4]} 20. Bxf8 {[%clk 0:00:56.5]} 20... Bxf8
{[%clk 0:01:31.3]} 21. Re8 {[%clk 0:00:38.8]} 21... Bb7 {[%clk 0:01:24.2]} 22.
Rxa8 {[%clk 0:00:36.3]} 22... Bxa8 {[%clk 0:01:26.1]} 23. Qd8 {[%clk 0:00:26.6]}
23... Bb7 {[%clk 0:01:25.5]} 24. Re1 {[%clk 0:00:26.8]} 24... Qd5 {[%clk
0:01:16.6]} 25. Qb8 {[%clk 0:00:21.2]} 25... Kg7 {[%clk 0:01:02.8]} 26. Qxb7
{[%clk 0:00:19.2]} 26... a5 {[%clk 0:00:58.3]} 27. Qb2+ {[%clk 0:00:18]} 27...
f6 {[%clk 0:00:57.6]} 28. Qb7+ {[%clk 0:00:16.9]} 28... Kh6 {[%clk 0:00:58.3]}
29. Qa7 {[%clk 0:00:11.7]} 29... Bb4 {[%clk 0:00:55]} 30. Rf1 {[%clk 0:00:10]}
30... c5 {[%clk 0:00:49.1]} 31. h4 {[%clk 0:00:08.4]} 31... c4 {[%clk
0:00:47.8]} 32. Qd4 {[%clk 0:00:07]} 32... Qc6 {[%clk 0:00:44.3]} 33. Nd2 {[%clk
0:00:03.2]} 33... c3 {[%clk 0:00:38.2]} 34. Ne4 {[%clk 0:00:04.5]} 34... c2
{[%clk 0:00:31]} 35. Nxf6 {[%clk 0:00:05.2]} 35... c1=Q {[%clk 0:00:26.3]} 36.
Ng8+ {[%clk 0:00:04.1]} 36... Kh5 {[%clk 0:00:27.2]} 37. Nf6+ {[%clk 0:00:03.6]}
37... Kh6 {[%clk 0:00:16.8]} 38. Ng8+ {[%clk 0:00:04.8]} 38... Kh5 {[%clk
0:00:17.6]} 39. Nf6+ {[%clk 0:00:05.8]} 39... Kh6 {[%clk 0:00:17.1]} 1/2-1/2

[Event "*** Titled Tuesday Blitz"]
[Site "Chess.com"]
[Date "2019.06.04"]
[Round "7"]
[White "Berardino"]
[Black "pedro_gines"]
[Result "0-1"]
[WhiteElo "2544"]
[BlackElo "2390"]
[TimeControl "180+2"]
[EndTime "14:35:45 PDT"]
[Termination "pedro_gines won by resignation"]

1. e4 {[%clk 0:03:01.9]} 1... c6 {[%clk 0:03:00.4]} 2. d4 {[%clk 0:03:02.4]}
2... d5 {[%clk 0:03:02.3]} 3. exd5 {[%clk 0:03:03.6]} 3... cxd5 {[%clk
0:03:03.1]} 4. c4 {[%clk 0:03:05.5]} 4... Nf6 {[%clk 0:03:03.8]} 5. Nc3 {[%clk
0:03:06.9]} 5... Nc6 {[%clk 0:03:03.7]} 6. Bg5 {[%clk 0:03:08]} 6... Be6 {[%clk
0:03:00]} 7. Be2 {[%clk 0:03:08.2]} 7... Qa5 {[%clk 0:02:53.8]} 8. Bf3 {[%clk
0:03:06.9]} 8... O-O-O {[%clk 0:02:46.3]} 9. Bxf6 {[%clk 0:02:59.3]} 9... gxf6
{[%clk 0:02:47.1]} 10. cxd5 {[%clk 0:03:00.5]} 10... Bxd5 {[%clk 0:02:48.2]} 11.
Bxd5 {[%clk 0:02:42.3]} 11... Rxd5 {[%clk 0:02:50.1]} 12. Nf3 {[%clk 0:02:34.5]}
12... e6 {[%clk 0:02:10.1]} 13. O-O {[%clk 0:02:26.6]} 13... Rd8 {[%clk
0:02:10.7]} 14. Qb3 {[%clk 0:02:20.8]} 14... Qb4 {[%clk 0:02:09.3]} 15. Rfd1
{[%clk 0:02:08.9]} 15... Qxb3 {[%clk 0:01:14.2]} 16. axb3 {[%clk 0:02:07.2]}
16... Bb4 {[%clk 0:01:11]} 17. g3 {[%clk 0:01:06.9]} 17... Kb8 {[%clk
0:00:55.3]} 18. d5 {[%clk 0:01:00.9]} 18... Bxc3 {[%clk 0:00:53.7]} 19. dxc6
{[%clk 0:01:01.6]} 19... Bxb2 {[%clk 0:00:50.8]} 20. Rab1 {[%clk 0:01:00.6]}
20... Rxd1+ {[%clk 0:00:49.7]} 21. Rxd1 {[%clk 0:01:01.5]} 21... bxc6 {[%clk
0:00:41.9]} 22. Rd7 {[%clk 0:01:02.2]} 22... Rf8 {[%clk 0:00:43.2]} 23. Nd2
{[%clk 0:00:59.3]} 23... Be5 {[%clk 0:00:39.4]} 24. Nc4 {[%clk 0:01:00.3]} 24...
Bc7 {[%clk 0:00:39.4]} 25. Rd4 {[%clk 0:00:56.2]} 25... Rd8 {[%clk 0:00:38.3]}
26. Rh4 {[%clk 0:00:56.7]} 26... Rd3 {[%clk 0:00:32]} 27. Rxh7 {[%clk
0:00:55.6]} 27... Rxb3 {[%clk 0:00:33.5]} 28. Rxf7 {[%clk 0:00:53.9]} 28... Rc3
{[%clk 0:00:34.1]} 29. Nb2 {[%clk 0:00:44.5]} 29... Be5 {[%clk 0:00:31.8]} 30.
Nd1 {[%clk 0:00:24.7]} 30... Rc1 {[%clk 0:00:29.6]} 31. Rd7 {[%clk 0:00:25.7]}
31... a5 {[%clk 0:00:29.9]} 32. Kg2 {[%clk 0:00:24.5]} 32... a4 {[%clk 0:00:31]}
33. Rd3 {[%clk 0:00:25.3]} 33... a3 {[%clk 0:00:27.5]} 34. Rb3+ {[%clk
0:00:23.3]} 34... Kc7 {[%clk 0:00:27.8]} 35. Rxa3 {[%clk 0:00:23.9]} 35... Rxd1
{[%clk 0:00:28.6]} 36. h4 {[%clk 0:00:24.8]} 36... f5 {[%clk 0:00:28.1]} 37. h5
{[%clk 0:00:25.8]} 37... c5 {[%clk 0:00:29.2]} 38. Ra7+ {[%clk 0:00:24.8]} 38...
Kd6 {[%clk 0:00:29.4]} 39. h6 {[%clk 0:00:25.4]} 39... c4 {[%clk 0:00:23.9]} 40.
h7 {[%clk 0:00:24.9]} 40... c3 {[%clk 0:00:24.1]} 41. Ra6+ {[%clk 0:00:23.1]}
41... Ke7 {[%clk 0:00:23.5]} 42. Rc6 {[%clk 0:00:23.6]} 42... Rd8 {[%clk
0:00:20.4]} 43. Rc5 {[%clk 0:00:21.8]} 43... Bf6 {[%clk 0:00:20.4]} 44. Kf1
{[%clk 0:00:21.1]} 44... Rh8 {[%clk 0:00:20.8]} 45. Ke2 {[%clk 0:00:22.1]} 45...
Kd6 {[%clk 0:00:21.8]} 46. Rc4 {[%clk 0:00:19.3]} 46... Rxh7 {[%clk 0:00:22.9]}
47. Kd3 {[%clk 0:00:18.9]} 47... Rc7 {[%clk 0:00:24.3]} 0-1

[Event "*** Titled Tuesday Blitz"]
[Site "Chess.com"]
[Date "2019.06.04"]
[Round "7"]
[White "velemajstor767276"]
[Black "Joseph_Truelson"]
[Result "1-0"]
[WhiteElo "2533"]
[BlackElo "2287"]
[TimeControl "180+2"]
[EndTime "14:35:47 PDT"]
[Termination "velemajstor767276 won by resignation"]

1. d4 {[%clk 0:03:01.9]} 1... d6 {[%clk 0:02:59.1]} 2. c4 {[%clk 0:02:56.1]}
2... e5 {[%clk 0:02:58.9]} 3. dxe5 {[%clk 0:02:56.8]} 3... dxe5 {[%clk
0:03:00.8]} 4. Qxd8+ {[%clk 0:02:58]} 4... Kxd8 {[%clk 0:03:02.7]} 5. Nf3 {[%clk
0:02:58.9]} 5... f6 {[%clk 0:03:02.5]} 6. Nc3 {[%clk 0:03:00]} 6... Be6 {[%clk
0:03:03.1]} 7. b3 {[%clk 0:03:00.2]} 7... Nd7 {[%clk 0:03:01.2]} 8. Bb2 {[%clk
0:02:59.4]} 8... c6 {[%clk 0:03:00.7]} 9. O-O-O {[%clk 0:02:57.8]} 9... Kc7
{[%clk 0:03:01.5]} 10. e3 {[%clk 0:02:49.9]} 10... Ne7 {[%clk 0:02:55.3]} 11.
Be2 {[%clk 0:02:49.5]} 11... g5 {[%clk 0:02:50]} 12. h4 {[%clk 0:02:48.7]} 12...
g4 {[%clk 0:02:43.6]} 13. Ne1 {[%clk 0:02:50]} 13... h5 {[%clk 0:02:44.8]} 14.
g3 {[%clk 0:02:50.1]} 14... Bg7 {[%clk 0:02:39.1]} 15. e4 {[%clk 0:02:49.5]}
15... Rad8 {[%clk 0:02:28.4]} 16. Kc2 {[%clk 0:02:47.5]} 16... f5 {[%clk
0:02:19.5]} 17. Ng2 {[%clk 0:02:41.1]} 17... Ng6 {[%clk 0:02:12.4]} 18. exf5
{[%clk 0:02:39.3]} 18... Bxf5+ {[%clk 0:02:13.1]} 19. Bd3 {[%clk 0:02:40.9]}
19... Bxd3+ {[%clk 0:02:12.4]} 20. Rxd3 {[%clk 0:02:41.9]} 20... Nc5 {[%clk
0:02:09.8]} 21. Rxd8 {[%clk 0:02:43.3]} 21... Rxd8 {[%clk 0:02:07.8]} 22. Rd1
{[%clk 0:02:44.8]} 22... Rxd1 {[%clk 0:01:57]} 23. Nxd1 {[%clk 0:02:46.7]} 23...
Ne7 {[%clk 0:01:55.6]} 24. Nge3 {[%clk 0:02:45.3]} 24... Ne6 {[%clk 0:01:45.3]}
25. Nc3 {[%clk 0:02:43.9]} 25... Nd4+ {[%clk 0:01:44]} 26. Kd3 {[%clk
0:02:44.7]} 26... Bh6 {[%clk 0:01:34.7]} 27. Ne4 {[%clk 0:02:39.5]} 27... Nf3
{[%clk 0:01:22.9]} 28. Nf6 {[%clk 0:02:38.1]} 28... Bxe3 {[%clk 0:01:18.2]} 29.
Kxe3 {[%clk 0:02:40]} 29... Nf5+ {[%clk 0:01:01.3]} 30. Ke4 {[%clk 0:02:39.3]}
30... Nd6+ {[%clk 0:01:01.7]} 31. Kd3 {[%clk 0:02:40.1]} 31... Kd8 {[%clk
0:00:44.5]} 32. c5 {[%clk 0:02:22.1]} 32... Nf5 {[%clk 0:00:32.6]} 33. Ke4
{[%clk 0:02:19.2]} 33... N5d4 {[%clk 0:00:25.8]} 34. Bxd4 {[%clk 0:02:18.2]}
34... exd4 {[%clk 0:00:24.6]} 35. Nxh5 {[%clk 0:02:16.7]} 35... Ke7 {[%clk
0:00:24.7]} 36. Nf4 {[%clk 0:02:15.7]} 36... Kf6 {[%clk 0:00:25.6]} 37. Ne2
{[%clk 0:02:11.5]} 37... Nd2+ {[%clk 0:00:14.6]} 38. Kxd4 {[%clk 0:02:12.3]}
38... Kf5 {[%clk 0:00:13.1]} 39. h5 {[%clk 0:01:53.3]} 39... Kg5 {[%clk
0:00:13.8]} 40. Nf4 {[%clk 0:01:54.3]} 40... Nf3+ {[%clk 0:00:13.4]} 41. Ke4
{[%clk 0:01:52.3]} 41... Nd2+ {[%clk 0:00:12.2]} 42. Ke5 {[%clk 0:01:53.7]}
42... Nf3+ {[%clk 0:00:12]} 43. Kd6 {[%clk 0:01:54.7]} 43... Nd2 {[%clk
0:00:09.9]} 44. Kc7 {[%clk 0:01:55.1]} 44... Ne4 {[%clk 0:00:08.1]} 45. Kxb7
{[%clk 0:01:56.4]} 45... Nxc5+ {[%clk 0:00:07.3]} 46. Kxa7 {[%clk 0:01:57.5]}
46... Ne4 {[%clk 0:00:07.9]} 47. Kb6 {[%clk 0:01:58.6]} 47... Nxf2 {[%clk
0:00:09.1]} 48. a4 {[%clk 0:02:00.2]} 48... Ne4 {[%clk 0:00:09.8]} 49. a5 {[%clk
0:02:01.6]} 49... Nxg3 {[%clk 0:00:11.3]} 50. Ng2 {[%clk 0:01:57.6]} 50... Ne4
{[%clk 0:00:07.8]} 51. a6 {[%clk 0:01:58.3]} 51... Nd6 {[%clk 0:00:04.4]} 52.
Kxc6 {[%clk 0:01:57.5]} 52... Nc8 {[%clk 0:00:05]} 53. b4 {[%clk 0:01:55.7]}
53... g3 {[%clk 0:00:03.8]} 54. b5 {[%clk 0:01:56.4]} 54... Kxh5 {[%clk
0:00:05.4]} 55. b6 {[%clk 0:01:57.5]} 55... Kg4 {[%clk 0:00:06.4]} 56. a7 {[%clk
0:01:57.2]} 56... Kf3 {[%clk 0:00:06.7]} 57. Kc7 {[%clk 0:01:58.4]} 57... Nxb6
{[%clk 0:00:06.5]} 58. Kxb6 {[%clk 0:01:58.7]} 58... Kxg2 {[%clk 0:00:07]} 59.
a8=Q+ {[%clk 0:01:59.8]} 59... Kh2 {[%clk 0:00:05.7]} 60. Qh8+ {[%clk
0:02:00.2]} 60... Kg1 {[%clk 0:00:06.8]} 61. Qg7 {[%clk 0:01:59.7]} 61... g2
{[%clk 0:00:06.2]} 62. Kc5 {[%clk 0:02:01.1]} 62... Kf2 {[%clk 0:00:07.4]} 63.
Qf6+ {[%clk 0:02:02.6]} 63... Ke3 {[%clk 0:00:05.9]} 64. Qg5+ {[%clk 0:02:01.8]}
64... Kf3 {[%clk 0:00:07.1]} 65. Kd4 {[%clk 0:02:01.7]} 65... Kf2 {[%clk
0:00:07.5]} 66. Qf4+ {[%clk 0:02:03]} 66... Ke1 {[%clk 0:00:08.3]} 67. Qg3+
{[%clk 0:02:03.7]} 67... Kf1 {[%clk 0:00:09.4]} 68. Qf3+ {[%clk 0:02:05.3]}
68... Kg1 {[%clk 0:00:07.5]} 69. Ke3 {[%clk 0:02:06.5]} 69... Kh2 {[%clk
0:00:08.9]} 70. Qh5+ {[%clk 0:02:06.2]} 70... Kg3 {[%clk 0:00:08.3]} 71. Qg5+
{[%clk 0:02:07.3]} 71... Kh2 {[%clk 0:00:09.2]} 72. Kf2 {[%clk 0:02:08.2]} 1-0